[Event "Titled Tuesday Blitz May 23 Late 2023"]
[White "Vovk, Orest"]
[Black "Williams, Simon K"]
[WhiteFideId "14113490"]
[BlackFideId "404454"]
[WhiteElo "2215"]
[BlackElo "2468"]
[Result "1/2-1/2"]
[Round "01"]
[TimeControl "180+2"]
[Date "2023.05.23"]
[WhiteClock "0:00:06"]
[BlackClock "0:00:47"]

1. h4 {[%clk 0:03:00]}  d5 {[%clk 0:02:58]} 2. h5 {[%clk 0:02:59]}  e5 {[%clk 0:02:57]} 3. h6 {[%clk 0:02:59]}  Nxh6 {[%clk 0:02:57]} 4. d4 {[%clk 0:02:59]}  Ng4 {[%clk 0:02:55]} 5. f3 {[%clk 0:02:58]}  Nf6 {[%clk 0:02:53]} 6. dxe5 {[%clk 0:02:58]}  Nfd7 {[%clk 0:02:53]} 7. Qxd5 {[%clk 0:02:54]}  c6 {[%clk 0:02:52]} 8. Qd3 {[%clk 0:02:21]}  Na6 {[%clk 0:02:43]} 9. e6 {[%clk 0:02:15]}  fxe6 {[%clk 0:02:36]} 10. Rxh7 {[%clk 0:02:13]}  Rxh7 {[%clk 0:02:26]} 11. Qg6+ {[%clk 0:02:06]}  Ke7 {[%clk 0:02:26]} 12. Bg5+ {[%clk 0:01:46]}  Nf6 {[%clk 0:02:26]} 13. Bxf6+ {[%clk 0:01:45]}  gxf6 {[%clk 0:02:26]} 14. Qxh7+ {[%clk 0:01:46]}  Ke8 {[%clk 0:02:17]} 15. Qg6+ {[%clk 0:01:14]}  Kd7 {[%clk 0:02:17]} 16. Nd2 {[%clk 0:00:59]}  Kc7 {[%clk 0:02:11]} 17. O-O-O {[%clk 0:00:58]}  Qe7 {[%clk 0:02:06]} 18. Ne4 {[%clk 0:00:47]}  f5 {[%clk 0:02:03]} 19. Nd6 {[%clk 0:00:38]}  Bd7 {[%clk 0:02:03]} 20. e4 {[%clk 0:00:27]}  Qg7 {[%clk 0:01:39]} 21. Qxg7 {[%clk 0:00:22]}  Bxg7 {[%clk 0:01:39]} 22. Bxa6 {[%clk 0:00:22]}  bxa6 {[%clk 0:01:39]} 23. exf5 {[%clk 0:00:20]}  exf5 {[%clk 0:01:38]} 24. Nh3 {[%clk 0:00:09]}  Rd8 {[%clk 0:01:30]} 25. Nc4 {[%clk 0:00:09]}  Re8 {[%clk 0:01:28]} 26. f4 {[%clk 0:00:05]}  Re2 {[%clk 0:01:24]} 27. Ne5 {[%clk 0:00:05]}  Be6 {[%clk 0:01:09]} 28. Ng5 {[%clk 0:00:05]}  Bd5 {[%clk 0:01:09]} 29. c4 {[%clk 0:00:04]}  Bxe5 {[%clk 0:01:07]} 30. fxe5 {[%clk 0:00:04]}  Bxc4 {[%clk 0:01:07]} 31. e6 {[%clk 0:00:04]}  Bxe6 {[%clk 0:01:06]} 32. Nxe6+ {[%clk 0:00:04]}  Rxe6 {[%clk 0:01:07]} 33. Rf1 {[%clk 0:00:05]}  Re2 {[%clk 0:01:06]} 34. Rxf5 {[%clk 0:00:05]}  Rxg2 {[%clk 0:01:06]} 35. Rf7+ {[%clk 0:00:05]}  Kb6 {[%clk 0:01:06]} 36. a3 {[%clk 0:00:06]}  a5 {[%clk 0:01:07]} 37. Rf4 {[%clk 0:00:05]}  Kb5 {[%clk 0:01:06]} 38. Rf5+ {[%clk 0:00:06]}  c5 {[%clk 0:01:05]} 39. Rf7 {[%clk 0:00:06]}  a6 {[%clk 0:01:05]} 40. Rf4 {[%clk 0:00:06]}  a4 {[%clk 0:01:05]} 41. Rf3 {[%clk 0:00:05]}  Kc4 {[%clk 0:01:05]} 42. Rc3+ {[%clk 0:00:05]}  Kd4 {[%clk 0:01:05]} 43. Rh3 {[%clk 0:00:05]}  Re2 {[%clk 0:01:04]} 44. Rh4+ {[%clk 0:00:05]}  Re4 {[%clk 0:01:04]} 45. Rxe4+ {[%clk 0:00:04]}  Kxe4 {[%clk 0:01:04]} 46. Kc2 {[%clk 0:00:04]}  Kd4 {[%clk 0:01:04]} 47. Kd2 {[%clk 0:00:05]}  Kc4 {[%clk 0:01:04]} 48. Kc2 {[%clk 0:00:05]}  a5 {[%clk 0:01:01]} 49. Kc1 {[%clk 0:00:05]}  Kd3 {[%clk 0:01:01]} 50. Kb1 {[%clk 0:00:05]}  Kd2 {[%clk 0:01:00]} 51. Ka2 {[%clk 0:00:05]}  Kc2 {[%clk 0:01:00]} 52. Ka1 {[%clk 0:00:05]}  c4 {[%clk 0:00:47]} 53. Ka2 {[%clk 0:00:06]} 1/2-1/2


[Site "https://www.chess.com"]

[Event "Titled Tuesday Blitz May 23 Late 2023"]
[White "Schmakel, Sam"]
[Black "Arencibia Monduy, Antonio"]
[WhiteFideId "2039311"]
[BlackFideId "3507939"]
[WhiteElo "2356"]
[BlackElo "2421"]
[Result "1-0"]
[Round "01"]
[TimeControl "180+2"]
[Date "2023.05.23"]
[WhiteClock "0:01:39"]
[BlackClock "0:00:03"]

1. d4 {[%clk 0:02:58]}  Nf6 {[%clk 0:02:59]} 2. c4 {[%clk 0:02:58]}  e6 {[%clk 0:02:59]} 3. Nf3 {[%clk 0:02:58]}  d5 {[%clk 0:02:59]} 4. Nc3 {[%clk 0:02:58]}  c6 {[%clk 0:02:57]} 5. g3 {[%clk 0:02:57]}  Ne4 {[%clk 0:02:54]} 6. Bg2 {[%clk 0:02:54]}  f5 {[%clk 0:02:53]} 7. O-O {[%clk 0:02:54]}  Be7 {[%clk 0:02:43]} 8. Bf4 {[%clk 0:02:52]}  O-O {[%clk 0:02:43]} 9. Qc2 {[%clk 0:02:51]}  Nd7 {[%clk 0:02:37]} 10. Rab1 {[%clk 0:02:47]}  Ndf6 {[%clk 0:02:22]} 11. b4 {[%clk 0:02:39]}  Nxc3 {[%clk 0:02:21]} 12. Qxc3 {[%clk 0:02:40]}  Ne4 {[%clk 0:02:21]} 13. Qc2 {[%clk 0:02:40]}  Bd6 {[%clk 0:02:14]} 14. Bxd6 {[%clk 0:02:38]}  Qxd6 {[%clk 0:02:14]} 15. c5 {[%clk 0:02:36]}  Qd8 {[%clk 0:02:11]} 16. Ne5 {[%clk 0:02:31]}  Nf6 {[%clk 0:02:07]} 17. b5 {[%clk 0:02:31]}  cxb5 {[%clk 0:02:02]} 18. Rxb5 {[%clk 0:02:32]}  Nd7 {[%clk 0:02:02]} 19. c6 {[%clk 0:02:16]}  Nb6 {[%clk 0:01:25]} 20. a4 {[%clk 0:01:40]}  bxc6 {[%clk 0:01:24]} 21. Qxc6 {[%clk 0:01:40]}  Bd7 {[%clk 0:01:22]} 22. Nxd7 {[%clk 0:01:39]}  Nxd7 {[%clk 0:01:10]} 23. Qxe6+ {[%clk 0:01:39]}  Kh8 {[%clk 0:00:03]} 24. Rxd5 {[%clk 0:01:39]} 1-0


[Site "https://www.chess.com"]

[Event "Titled Tuesday Blitz May 23 Late 2023"]
[White "Papasimakopoulos, Alexandros"]
[Black "Grossboss19"]
[WhiteFideId "4244125"]
[WhiteElo "2359"]
[BlackElo "2420"]
[Result "1-0"]
[Round "01"]
[TimeControl "180+2"]
[Date "2023.05.23"]
[WhiteClock "0:01:07"]
[BlackClock "0:00:53"]

1. d4 {[%clk 0:02:47]}  d5 {[%clk 0:02:57]} 2. c4 {[%clk 0:02:47]}  c6 {[%clk 0:02:55]} 3. cxd5 {[%clk 0:02:47]}  cxd5 {[%clk 0:02:55]} 4. Bf4 {[%clk 0:02:47]}  Nc6 {[%clk 0:02:55]} 5. e3 {[%clk 0:02:46]}  Nf6 {[%clk 0:02:51]} 6. Nc3 {[%clk 0:02:45]}  e6 {[%clk 0:02:50]} 7. Bd3 {[%clk 0:02:45]}  Bd6 {[%clk 0:02:49]} 8. Bxd6 {[%clk 0:02:43]}  Qxd6 {[%clk 0:02:50]} 9. f4 {[%clk 0:02:43]}  Nd7 {[%clk 0:02:35]} 10. Nf3 {[%clk 0:02:41]}  f5 {[%clk 0:02:24]} 11. Ne5 {[%clk 0:02:40]}  Ndxe5 {[%clk 0:02:18]} 12. fxe5 {[%clk 0:02:39]}  Qb4 {[%clk 0:02:11]} 13. Qd2 {[%clk 0:02:39]}  a6 {[%clk 0:02:08]} 14. O-O-O {[%clk 0:02:31]}  Bd7 {[%clk 0:02:05]} 15. Kb1 {[%clk 0:02:28]}  O-O-O {[%clk 0:01:51]} 16. Rc1 {[%clk 0:02:20]}  Kb8 {[%clk 0:01:51]} 17. a3 {[%clk 0:02:15]}  Qa5 {[%clk 0:01:47]} 18. h4 {[%clk 0:02:07]}  h5 {[%clk 0:01:46]} 19. Qe1 {[%clk 0:02:04]}  f4 {[%clk 0:01:34]} 20. Rf1 {[%clk 0:01:53]}  Rhf8 {[%clk 0:01:31]} 21. Bg6 {[%clk 0:01:32]}  Qb6 {[%clk 0:01:19]} 22. Na4 {[%clk 0:01:29]}  Qb3 {[%clk 0:01:18]} 23. Nc5 {[%clk 0:01:25]}  Qxe3 {[%clk 0:01:17]} 24. Qxe3 {[%clk 0:01:24]}  fxe3 {[%clk 0:01:17]} 25. Rxf8 {[%clk 0:01:25]}  Rxf8 {[%clk 0:01:10]} 26. Nxd7+ {[%clk 0:01:25]}  Ka7 {[%clk 0:01:11]} 27. Nxf8 {[%clk 0:01:26]}  Nxd4 {[%clk 0:01:12]} 28. Re1 {[%clk 0:01:22]}  e2 {[%clk 0:01:10]} 29. Bxh5 {[%clk 0:01:21]}  Nf5 {[%clk 0:01:07]} 30. Bxe2 {[%clk 0:01:17]}  Nxh4 {[%clk 0:01:06]} 31. Nxe6 {[%clk 0:01:17]}  Nxg2 {[%clk 0:01:07]} 32. Rg1 {[%clk 0:01:17]}  Ne3 {[%clk 0:01:06]} 33. Rxg7 {[%clk 0:01:16]}  Nf5 {[%clk 0:01:06]} 34. Rd7 {[%clk 0:01:14]}  Ng3 {[%clk 0:01:04]} 35. Bd3 {[%clk 0:01:14]}  Nh5 {[%clk 0:01:03]} 36. b4 {[%clk 0:01:08]}  Ng3 {[%clk 0:01:02]} 37. Nc5 {[%clk 0:01:08]}  Nh5 {[%clk 0:00:59]} 38. Rxb7+ {[%clk 0:01:08]}  Ka8 {[%clk 0:00:59]} 39. Rf7 {[%clk 0:01:07]}  d4 {[%clk 0:00:53]} 40. e6 {[%clk 0:01:07]} 1-0


[Site "https://www.chess.com"]

[Event "Titled Tuesday Blitz May 23 Late 2023"]
[White "Perez Rodriguez, Jennifer"]
[Black "Weichhold, Pawel"]
[WhiteFideId "3507831"]
[BlackFideId "1139703"]
[WhiteElo "2116"]
[BlackElo "2330"]
[Result "1-0"]
[Round "01"]
[TimeControl "180+2"]
[Date "2023.05.23"]
[WhiteClock "0:00:08"]
[BlackClock "0:00:27"]

1. e4 {[%clk 0:03:00]}  c5 {[%clk 0:02:58]} 2. c3 {[%clk 0:02:59]}  d5 {[%clk 0:02:55]} 3. exd5 {[%clk 0:03:00]}  Qxd5 {[%clk 0:02:56]} 4. d4 {[%clk 0:03:00]}  Nf6 {[%clk 0:02:56]} 5. Nf3 {[%clk 0:03:00]}  e6 {[%clk 0:02:56]} 6. Bd3 {[%clk 0:02:57]}  Be7 {[%clk 0:02:53]} 7. O-O {[%clk 0:02:54]}  O-O {[%clk 0:02:53]} 8. Be3 {[%clk 0:02:42]}  cxd4 {[%clk 0:02:46]} 9. cxd4 {[%clk 0:02:41]}  Nc6 {[%clk 0:02:43]} 10. Nc3 {[%clk 0:02:41]}  Qd6 {[%clk 0:02:44]} 11. a3 {[%clk 0:02:42]}  b6 {[%clk 0:02:36]} 12. Qe2 {[%clk 0:02:42]}  Bb7 {[%clk 0:02:24]} 13. Rad1 {[%clk 0:02:42]}  Rac8 {[%clk 0:01:51]} 14. Rfe1 {[%clk 0:02:40]}  Rfd8 {[%clk 0:01:46]} 15. Bb1 {[%clk 0:02:38]}  Bf8 {[%clk 0:01:41]} 16. Bg5 {[%clk 0:02:29]}  Ne7 {[%clk 0:01:37]} 17. Ne5 {[%clk 0:02:23]}  Ng6 {[%clk 0:01:08]} 18. h4 {[%clk 0:01:51]}  Be7 {[%clk 0:01:06]} 19. h5 {[%clk 0:01:49]}  Nf8 {[%clk 0:01:07]} 20. Bf4 {[%clk 0:01:35]}  Nd5 {[%clk 0:00:59]} 21. Nxd5 {[%clk 0:01:26]}  Qxd5 {[%clk 0:01:00]} 22. Qg4 {[%clk 0:01:17]}  Bf6 {[%clk 0:00:44]} 23. Be4 {[%clk 0:01:16]}  Qxe4 {[%clk 0:00:40]} 24. Rxe4 {[%clk 0:01:15]}  Bxe4 {[%clk 0:00:41]} 25. Bg5 {[%clk 0:01:04]}  Bf5 {[%clk 0:00:35]} 26. Qg3 {[%clk 0:00:57]}  Bxe5 {[%clk 0:00:35]} 27. Qxe5 {[%clk 0:00:56]}  f6 {[%clk 0:00:36]} 28. Bxf6 {[%clk 0:00:56]}  gxf6 {[%clk 0:00:37]} 29. Qxf6 {[%clk 0:00:56]}  Rd7 {[%clk 0:00:35]} 30. d5 {[%clk 0:00:54]}  Rf7 {[%clk 0:00:33]} 31. Qe5 {[%clk 0:00:48]}  exd5 {[%clk 0:00:33]} 32. Rxd5 {[%clk 0:00:46]}  h6 {[%clk 0:00:31]} 33. Rd6 {[%clk 0:00:40]}  Rc5 {[%clk 0:00:28]} 34. Qe8 {[%clk 0:00:38]}  Bh7 {[%clk 0:00:28]} 35. Rxh6 {[%clk 0:00:36]}  Rg5 {[%clk 0:00:28]} 36. Re6 {[%clk 0:00:32]}  Bf5 {[%clk 0:00:28]} 37. Re7 {[%clk 0:00:32]}  Rgg7 {[%clk 0:00:27]} 38. Rxf7 {[%clk 0:00:32]}  Rxf7 {[%clk 0:00:28]} 39. Qe5 {[%clk 0:00:32]}  Be6 {[%clk 0:00:28]} 40. h6 {[%clk 0:00:29]}  Kh7 {[%clk 0:00:28]} 41. Qe3 {[%clk 0:00:26]}  Bf5 {[%clk 0:00:27]} 42. Qg5 {[%clk 0:00:25]}  Bg6 {[%clk 0:00:27]} 43. f3 {[%clk 0:00:24]}  Ne6 {[%clk 0:00:27]} 44. Qe5 {[%clk 0:00:23]}  Kxh6 {[%clk 0:00:26]} 45. Qxe6 {[%clk 0:00:23]}  Rf5 {[%clk 0:00:25]} 46. Qd7 {[%clk 0:00:22]}  Rg5 {[%clk 0:00:24]} 47. Qxa7 {[%clk 0:00:21]}  Bh5 {[%clk 0:00:24]} 48. Kf2 {[%clk 0:00:20]}  Rg6 {[%clk 0:00:24]} 49. b4 {[%clk 0:00:19]}  Rf6 {[%clk 0:00:24]} 50. a4 {[%clk 0:00:19]}  Bf7 {[%clk 0:00:25]} 51. a5 {[%clk 0:00:20]}  bxa5 {[%clk 0:00:26]} 52. bxa5 {[%clk 0:00:20]}  Kg6 {[%clk 0:00:25]} 53. Qc7 {[%clk 0:00:15]}  Bd5 {[%clk 0:00:21]} 54. Qc5 {[%clk 0:00:14]}  Bb7 {[%clk 0:00:20]} 55. Qe5 {[%clk 0:00:11]}  Ba6 {[%clk 0:00:20]} 56. f4 {[%clk 0:00:09]}  Kf7 {[%clk 0:00:21]} 57. g4 {[%clk 0:00:10]}  Re6 {[%clk 0:00:22]} 58. Qf5+ {[%clk 0:00:09]}  Ke7 {[%clk 0:00:22]} 59. Qh7+ {[%clk 0:00:09]}  Kd6 {[%clk 0:00:23]} 60. f5 {[%clk 0:00:10]}  Re2+ {[%clk 0:00:23]} 61. Kg3 {[%clk 0:00:10]}  Kc5 {[%clk 0:00:21]} 62. f6 {[%clk 0:00:09]}  Re3+ {[%clk 0:00:20]} 63. Kf4 {[%clk 0:00:09]}  Re1 {[%clk 0:00:21]} 64. Kg5 {[%clk 0:00:10]}  Re5+ {[%clk 0:00:21]} 65. Kh6 {[%clk 0:00:09]}  Re6 {[%clk 0:00:21]} 66. Qc7+ {[%clk 0:00:09]}  Kd5 {[%clk 0:00:21]} 67. Kg7 {[%clk 0:00:08]}  Re4 {[%clk 0:00:21]} 68. Qd7+ {[%clk 0:00:08]}  Kc5 {[%clk 0:00:20]} 69. Qe7+ {[%clk 0:00:06]}  Kd5 {[%clk 0:00:18]} 70. Qxe4+ {[%clk 0:00:04]}  Kxe4 {[%clk 0:00:19]} 71. f7 {[%clk 0:00:04]}  Kf4 {[%clk 0:00:20]} 72. f8=Q+ {[%clk 0:00:05]}  Kxg4 {[%clk 0:00:21]} 73. Qd6 {[%clk 0:00:05]}  Be2 {[%clk 0:00:22]} 74. a6 {[%clk 0:00:05]}  Kf3 {[%clk 0:00:22]} 75. a7 {[%clk 0:00:06]}  Kf2 {[%clk 0:00:23]} 76. a8=Q {[%clk 0:00:07]}  Ke1 {[%clk 0:00:24]} 77. Qe4 {[%clk 0:00:07]}  Kf1 {[%clk 0:00:25]} 78. Qde5 {[%clk 0:00:07]}  Bf3 {[%clk 0:00:25]} 79. Qxf3+ {[%clk 0:00:08]}  Kg1 {[%clk 0:00:26]} 80. Qe1+ {[%clk 0:00:08]}  Kh2 {[%clk 0:00:27]} 81. Qfg3# {[%clk 0:00:08]} 1-0


[Site "https://www.chess.com"]

[Event "Titled Tuesday Blitz May 23 Late 2023"]
[White "Matinian, Nikita"]
[Black "Szyszylo, Rafal"]
[WhiteFideId "24129100"]
[BlackFideId "1109626"]
[WhiteElo "2422"]
[BlackElo "1951"]
[Result "1-0"]
[Round "01"]
[TimeControl "180+2"]
[Date "2023.05.23"]
[WhiteClock "0:01:37"]
[BlackClock "0:00:00"]

1. e4 {[%clk 0:03:00]}  d6 {[%clk 0:02:57]} 2. d4 {[%clk 0:02:56]}  Nf6 {[%clk 0:02:56]} 3. Nc3 {[%clk 0:02:56]}  g6 {[%clk 0:02:55]} 4. f4 {[%clk 0:02:55]}  Bg7 {[%clk 0:02:55]} 5. Nf3 {[%clk 0:02:56]}  O-O {[%clk 0:02:55]} 6. e5 {[%clk 0:02:55]}  Nfd7 {[%clk 0:02:55]} 7. Bc4 {[%clk 0:02:54]}  Nb6 {[%clk 0:02:54]} 8. Bb3 {[%clk 0:02:54]}  Nc6 {[%clk 0:02:53]} 9. h4 {[%clk 0:02:52]}  Na5 {[%clk 0:02:53]} 10. h5 {[%clk 0:02:52]}  Nxb3 {[%clk 0:02:53]} 11. axb3 {[%clk 0:02:52]}  dxe5 {[%clk 0:02:52]} 12. fxe5 {[%clk 0:02:51]}  Bg4 {[%clk 0:02:49]} 13. h6 {[%clk 0:02:43]}  Bh8 {[%clk 0:02:48]} 14. Be3 {[%clk 0:02:39]}  Nd5 {[%clk 0:02:33]} 15. Qd2 {[%clk 0:02:38]}  Nxe3 {[%clk 0:02:32]} 16. Qxe3 {[%clk 0:02:38]}  Bxf3 {[%clk 0:02:32]} 17. gxf3 {[%clk 0:02:38]}  Qd7 {[%clk 0:02:04]} 18. O-O-O {[%clk 0:02:36]}  b5 {[%clk 0:01:39]} 19. f4 {[%clk 0:02:33]}  c6 {[%clk 0:01:35]} 20. Ne4 {[%clk 0:02:29]}  Qd5 {[%clk 0:01:28]} 21. f5 {[%clk 0:02:26]}  a5 {[%clk 0:01:25]} 22. Rdf1 {[%clk 0:02:04]}  Bxe5 {[%clk 0:00:44]} 23. dxe5 {[%clk 0:01:59]}  Qxe5 {[%clk 0:00:45]} 24. Qf4 {[%clk 0:01:42]}  Qxf4+ {[%clk 0:00:08]} 25. Rxf4 {[%clk 0:01:41]}  gxf5 {[%clk 0:00:05]} 26. Rg1+ {[%clk 0:01:39]}  Kh8 {[%clk 0:00:05]} 27. Rxf5 {[%clk 0:01:39]}  f6 {[%clk 0:00:06]} 28. Rg7 {[%clk 0:01:38]}  Rae8 {[%clk 0:00:04]} 29. Rc5 {[%clk 0:01:38]}  Rg8 {[%clk 0:00:01]} 30. Rxg8+ {[%clk 0:01:38]}  Kxg8 {[%clk 0:00:02]} 31. Rxc6 {[%clk 0:01:38]}  Kf7 {[%clk 0:00:00]} 32. Rc5 {[%clk 0:01:37]} 1-0


[Site "https://www.chess.com"]

[Event "Titled Tuesday Blitz May 23 Late 2023"]
[White "zsizsi99"]
[Black "Nazari, Arad"]
[BlackFideId "12577324"]
[WhiteElo "2409"]
[BlackElo "2175"]
[Result "0-1"]
[Round "01"]
[TimeControl "180+2"]
[Date "2023.05.23"]
[WhiteClock "0:00:18"]
[BlackClock "0:00:29"]

1. e4 {[%clk 0:02:52]}  c5 {[%clk 0:02:55]} 2. Nf3 {[%clk 0:02:52]}  d6 {[%clk 0:02:56]} 3. d4 {[%clk 0:02:51]}  cxd4 {[%clk 0:02:57]} 4. Nxd4 {[%clk 0:02:48]}  Nf6 {[%clk 0:02:58]} 5. Nc3 {[%clk 0:02:47]}  a6 {[%clk 0:02:58]} 6. Be2 {[%clk 0:02:34]}  e5 {[%clk 0:02:57]} 7. Nb3 {[%clk 0:02:34]}  Be7 {[%clk 0:02:54]} 8. O-O {[%clk 0:02:34]}  O-O {[%clk 0:02:55]} 9. Kh1 {[%clk 0:02:34]}  Nc6 {[%clk 0:02:53]} 10. f4 {[%clk 0:02:33]}  b5 {[%clk 0:02:31]} 11. Bf3 {[%clk 0:02:25]}  Na5 {[%clk 0:02:17]} 12. Be3 {[%clk 0:01:58]}  Nc4 {[%clk 0:02:05]} 13. Bc1 {[%clk 0:01:55]}  Qc7 {[%clk 0:01:38]} 14. Nd5 {[%clk 0:01:48]}  Nxd5 {[%clk 0:01:36]} 15. exd5 {[%clk 0:01:48]}  exf4 {[%clk 0:01:24]} 16. c3 {[%clk 0:01:45]}  Ne3 {[%clk 0:01:21]} 17. Bxe3 {[%clk 0:01:44]}  fxe3 {[%clk 0:01:22]} 18. a4 {[%clk 0:01:35]}  bxa4 {[%clk 0:01:17]} 19. Rxa4 {[%clk 0:01:35]}  Rb8 {[%clk 0:01:17]} 20. Be2 {[%clk 0:01:28]}  Bg5 {[%clk 0:00:52]} 21. Bxa6 {[%clk 0:01:01]}  Bxa6 {[%clk 0:00:46]} 22. Rxa6 {[%clk 0:00:59]}  Qc4 {[%clk 0:00:42]} 23. Rf5 {[%clk 0:00:36]}  e2 {[%clk 0:00:33]} 24. Qe1 {[%clk 0:00:32]}  Qxa6 {[%clk 0:00:32]} 25. Rxg5 {[%clk 0:00:21]}  Rxb3 {[%clk 0:00:31]} 26. Qd2 {[%clk 0:00:19]}  Qa1+ {[%clk 0:00:30]} 27. Qe1 {[%clk 0:00:18]}  Qxe1# {[%clk 0:00:29]} 0-1


[Site "https://www.chess.com"]

[Event "Titled Tuesday Blitz May 23 Late 2023"]
[White "Chen, Ryo"]
[Black "Kisic, Bozidar"]
[WhiteFideId "7003072"]
[BlackFideId "16500350"]
[WhiteElo "2169"]
[BlackElo "2234"]
[Result "0-1"]
[Round "01"]
[TimeControl "180+2"]
[Date "2023.05.23"]
[WhiteClock "0:01:50"]
[BlackClock "0:01:29"]

1. e4 {[%clk 0:03:00]}  g6 {[%clk 0:02:59]} 2. d4 {[%clk 0:02:59]}  Bg7 {[%clk 0:02:58]} 3. Nf3 {[%clk 0:02:59]}  d6 {[%clk 0:02:59]} 4. Be2 {[%clk 0:03:00]}  a6 {[%clk 0:02:59]} 5. O-O {[%clk 0:02:59]}  Nd7 {[%clk 0:02:59]} 6. c4 {[%clk 0:02:57]}  e5 {[%clk 0:02:54]} 7. d5 {[%clk 0:02:57]}  Ne7 {[%clk 0:02:52]} 8. Nc3 {[%clk 0:02:52]}  h6 {[%clk 0:02:51]} 9. b4 {[%clk 0:02:52]}  f5 {[%clk 0:02:50]} 10. Be3 {[%clk 0:02:49]}  Nf6 {[%clk 0:02:48]} 11. Rc1 {[%clk 0:02:42]}  fxe4 {[%clk 0:02:20]} 12. Nd2 {[%clk 0:02:41]}  Bf5 {[%clk 0:02:20]} 13. Qc2 {[%clk 0:02:31]}  O-O {[%clk 0:02:15]} 14. Ncxe4 {[%clk 0:02:27]}  Nxe4 {[%clk 0:02:13]} 15. Nxe4 {[%clk 0:02:27]}  Qe8 {[%clk 0:02:11]} 16. Bd3 {[%clk 0:02:26]}  g5 {[%clk 0:02:09]} 17. Ng3 {[%clk 0:02:24]}  Bxd3 {[%clk 0:01:59]} 18. Qxd3 {[%clk 0:02:25]}  a5 {[%clk 0:01:58]} 19. c5 {[%clk 0:02:18]}  axb4 {[%clk 0:01:55]} 20. cxd6 {[%clk 0:02:16]}  cxd6 {[%clk 0:01:55]} 21. Ne4 {[%clk 0:02:16]}  Nf5 {[%clk 0:01:49]} 22. Qb3 {[%clk 0:02:13]}  Qb5 {[%clk 0:01:35]} 23. Rc7 {[%clk 0:02:02]}  Ra3 {[%clk 0:01:31]} 24. Qc2 {[%clk 0:01:50]}  Nxe3 {[%clk 0:01:29]} 0-1


[Site "https://www.chess.com"]

[Event "Titled Tuesday Blitz May 23 Late 2023"]
[White "Martinez Ramirez, Lennis"]
[Black "Bogaudinov, Rushan"]
[WhiteFideId "3509079"]
[BlackFideId "4129288"]
[WhiteElo "2410"]
[BlackElo "1941"]
[Result "1-0"]
[Round "01"]
[TimeControl "180+2"]
[Date "2023.05.23"]
[WhiteClock "0:00:09"]
[BlackClock "0:00:00"]

1. c4 {[%clk 0:02:59]}  e5 {[%clk 0:02:59]} 2. g3 {[%clk 0:02:58]}  Nf6 {[%clk 0:02:56]} 3. Bg2 {[%clk 0:02:57]}  g6 {[%clk 0:02:55]} 4. Nc3 {[%clk 0:02:56]}  Bg7 {[%clk 0:02:55]} 5. b4 {[%clk 0:02:55]}  O-O {[%clk 0:02:53]} 6. e3 {[%clk 0:02:55]}  c6 {[%clk 0:02:48]} 7. b5 {[%clk 0:02:50]}  d5 {[%clk 0:02:46]} 8. bxc6 {[%clk 0:02:50]}  bxc6 {[%clk 0:02:45]} 9. cxd5 {[%clk 0:02:50]}  cxd5 {[%clk 0:02:44]} 10. Nge2 {[%clk 0:02:50]}  Nc6 {[%clk 0:02:40]} 11. O-O {[%clk 0:02:44]}  Be6 {[%clk 0:02:29]} 12. Ba3 {[%clk 0:02:43]}  Re8 {[%clk 0:02:28]} 13. Qa4 {[%clk 0:02:40]}  Rc8 {[%clk 0:02:22]} 14. Nb5 {[%clk 0:02:39]}  Ra8 {[%clk 0:02:04]} 15. Nd6 {[%clk 0:02:31]}  Bd7 {[%clk 0:02:04]} 16. Nxe8 {[%clk 0:02:30]}  Qxe8 {[%clk 0:01:56]} 17. Qd1 {[%clk 0:02:05]}  Qc8 {[%clk 0:01:45]} 18. Nc3 {[%clk 0:02:01]}  e4 {[%clk 0:01:36]} 19. Rc1 {[%clk 0:01:48]}  Qa6 {[%clk 0:01:32]} 20. Qa4 {[%clk 0:01:34]}  Na5 {[%clk 0:01:27]} 21. Qd1 {[%clk 0:00:28]}  Nc4 {[%clk 0:01:21]} 22. Bc5 {[%clk 0:00:28]}  Ne5 {[%clk 0:01:02]} 23. Bd4 {[%clk 0:00:25]}  Nd3 {[%clk 0:00:59]} 24. Rb1 {[%clk 0:00:25]}  h5 {[%clk 0:00:53]} 25. f3 {[%clk 0:00:25]}  Qc4 {[%clk 0:00:30]} 26. fxe4 {[%clk 0:00:25]}  Nxe4 {[%clk 0:00:30]} 27. Bxg7 {[%clk 0:00:23]}  Kxg7 {[%clk 0:00:31]} 28. Nxe4 {[%clk 0:00:16]}  dxe4 {[%clk 0:00:30]} 29. Rb7 {[%clk 0:00:16]}  Nc5 {[%clk 0:00:23]} 30. Qa1+ {[%clk 0:00:15]}  Kg8 {[%clk 0:00:21]} 31. Rc1 {[%clk 0:00:12]}  Qd5 {[%clk 0:00:17]} 32. Rc7 {[%clk 0:00:12]}  Nd3 {[%clk 0:00:15]} 33. R1c4 {[%clk 0:00:11]}  Re8 {[%clk 0:00:12]} 34. Rd4 {[%clk 0:00:10]}  Qa5 {[%clk 0:00:01]} 35. Rdxd7 {[%clk 0:00:09]}  Qxd2 {[%clk 0:00:00]} 36. Rxf7 {[%clk 0:00:09]} 1-0


[Site "https://www.chess.com"]